[Event "44th Chess Olympiad Women 2022"]
[Site "Chennai"]
[Date "2022.07.29"]
[Round "1.40"]
[White "Jambo, Linda"]
[Black "Borda Rodas, Anapaola S."]
[Result "0-1"]
[ECO "C78"]
[WhiteElo "1426"]
[BlackElo "2183"]
[Annotator "TA"]
[PlyCount "56"]
[EventDate "2022.07.29"]
[EventType "team-tourn"]
[EventCountry "IND"]
[SourceTitle "playchess.com"]
[Source "ChessBase"]
[SourceQuality "1"]
[WhiteTeam "MAW"]
[BlackTeam "Argentina"]
[BlackTeamCountry "ARG"]
[TimeControl "40/5400+30:1800+30"]

{[%evp 14,56,0,-6,0,0,0,0,0,-14,15,20,16,18,9,-42,-27,-43,-35,-320,-327,-316,-311,-364,-370,-347,-342,-277,-283,-504,-511,-722,-717,-960,-963,-29990,-29991,-29991,-2516,-29994,-29995,-29995,-29996,-29996,-29997]} 1. e4 {[%emt 0:00:13]} e5 {[%emt 0:00:17]} 2. Nf3 {[%emt 0:00:12]} Nc6 {[%emt 0:00:17]} 3. Bb5 {[%emt 0:00:37]} a6 {[%emt 0:00:17]} 4. Ba4 {[%emt 0:01:11]} Nf6 {[%emt 0:00:31]} 5. O-O {[%emt 0:03:06]} b5 {[%emt 0:00:42]} 6. Bb3 {[%emt 0:00:29]} Bc5 {[%emt 0:00:53] seems to push 6...Be7 aside.} 7. d3 {[%emt 0:10:03]} d6 {[%emt 0:02:36]} 8. h3 {[%emt 0:00:23]} h6 {[%emt 0:00:57] C78: Ruy Lopez: Archangelsk and Möller Defences.} 9. a3 {[%emt 0:00:20]} O-O {[%emt 0:00:31]} 10. Re1 {[%emt 0:00:29] [#]} Re8 $146 {[%emt 0:03:02][%cal Bf8e8,Be8e6,Be6d6,Bd6d1][%mdl 32] The position is equal.} ({Predecessor:} 10... Bb6 11. Nbd2 Ne7 12. Nf1 Ng6 13. Be3 Bxe3 14. Nxe3 Re8 15. c4 c6 16. Rc1 Bb7 {0-1 (32) Starup,L (1629)-Kyrkjebo,M (1833) Helsingor 2017}) 11. Be3 {[%emt 0:07:24]} Be6 {[%emt 0:08:55]} 12. Bxe6 {[%emt 0:03:17]} Rxe6 {[%emt 0:00:25]} 13. Bxc5 {[%emt 0:00:14]} dxc5 {[%emt 0:00:06]} 14. c3 {[%emt 0:05:20]} (14. Nbd2 $11) 14... Rd6 $15 {[%emt 0:03:13]} 15. Re3 {[%emt 0:06:15]} c4 $36 {[%emt 0:01:12][%mdl 2048] Black has the initiative.} 16. d4 $2 {[%emt 0:01:49][%mdl 8192] [#] This move loses the game for White.} (16. a4 $15) 16... exd4 $19 {[%emt 0:00:09]} 17. cxd4 {[%emt 0:04:46]} Nxd4 {[%emt 0:00:23]} 18. e5 {[%emt 0:01:33]} Nxf3+ {[%emt 0:01:35]} 19. Qxf3 {[%emt 0:03:00]} Rd1+ {[%emt 0:00:08]} 20. Kh2 {[%emt 0:00:55]} Nh7 {[%emt 0:00:46]} 21. b3 $2 {[%emt 0:26:52]} (21. a4 Rb8 22. axb5 Rxb5 23. Qc6) 21... Ng5 {[%emt 0:00:57]} 22. Qe2 {[%emt 0:02:27]} Qd4 {[%emt 0:01:57] Against Qb2} 23. bxc4 {[%emt 0:03:51]} Rd8 {[%emt 0:00:45]} 24. Qa2 {[%emt 0:02:32]} Qf4+ {[%emt 0:00:32]} 25. Rg3 {[%emt 0:03:31]} Ne4 {[%emt 0:00:16]} (25... Qc1 $142 26. Rb3 Rh1+ 27. Kg3 Qg1 28. f4 Rxh3+ 29. Kg4 Qd1+ 30. Rf3 Qd7+ 31. f5 Qd4+ 32. Rf4 {[#]} Qxf4+ $3 {[%mdl 512]} 33. Kxf4 Rd4#) 26. cxb5 {[%emt 0:05:14]} Nxg3 {[%emt 0:00:31] Black mates.} 27. fxg3 {[%emt 0:00:11]} Qf1 {[%emt 0:00:08][%csl Gd1][%cal Rf1g1]} 28. g4 {[%emt 0:00:30]} R8d3 {[%emt 0:00:19] Weighted Error Value: White=1.21/Black=0.32} 0-1

[Event "44th Chess Olympiad Women 2022"]
[Site "Chennai"]
[Date "2022.07.29"]
[Round "1.40"]
[White "Msukwa, Tupokiwe"]
[Black "Besso, Guadalupe"]
[Result "1/2-1/2"]
[ECO "D94"]
[WhiteElo "1369"]
[BlackElo "2059"]
[Annotator "TA"]
[PlyCount "62"]
[EventDate "2022.07.29"]
[EventType "team-tourn"]
[EventCountry "IND"]
[SourceTitle "playchess.com"]
[Source "ChessBase"]
[SourceQuality "1"]
[WhiteTeam "MAW"]
[BlackTeam "Argentina"]
[BlackTeamCountry "ARG"]
[TimeControl "40/5400+30:1800+30"]

{[%evp 20,62,-37,-37,-45,-36,-37,-44,-30,-37,-37,-31,-30,-33,-33,-71,-57,-68,12,27,43,0,3,6,8,4,24,19,41,45,67,49,64,10,10,10,14,0,38,21,31,22,18,12,21]} 1. d4 {[%emt 0:00:03]} Nf6 {[%emt 0:00:15]} 2. c4 {[%emt 0:00:09]} g6 {[%emt 0:00:26]} 3. Nc3 {[%emt 0:00:16]} d5 {[%emt 0:00:55]} 4. Bf4 {[%emt 0:01:32]} Bg7 {[%emt 0:00:30]} 5. Nf3 {[%emt 0:01:09]} O-O {[%emt 0:05:10]} 6. e3 {[%emt 0:01:12]} c5 {[%emt 0:03:41]} 7. Be2 {[%emt 0:03:25]} cxd4 {[%emt 0:01:20]} 8. exd4 {[%emt 0:00:07]} Nc6 {[%emt 0:00:34]} 9. O-O {[%emt 0:04:24]} Bg4 {[%emt 0:22:02]} 10. Be3 {[%emt 0:09:05]} dxc4 {[%emt 0:09:12]} 11. Bxc4 {[%emt 0:00:09]} Rc8 {[%emt 0:09:17] D94: Grünfeld: 4 Nf3 Bg7 5 e3.} 12. Be2 {[%emt 0:06:37]} Nd5 {[%emt 0:00:37]} 13. h3 {[%emt 0:04:35]} Bxf3 {[%emt 0:03:49] Black is slightly better.} 14. Bxf3 {[%emt 0:00:14]} Nxe3 {[%emt 0:00:24]} 15. fxe3 {[%emt 0:00:09] [#]} Bh6 $146 {[%emt 0:00:46]} ({Predecessor:} 15... e6 16. Qa4 a6 17. Rad1 Na5 18. Be2 b5 19. Qb4 Nc4 20. Bxc4 Rxc4 21. Qb3 Qc7 22. Ne4 Rc8 {½-½ (29) Seifert,J-Schirmer,M GER corr 1989}) 16. Qe2 {[%emt 0:01:37]} Na5 {[%emt 0:00:18]} 17. Rfd1 {[%emt 0:14:36]} Nc4 {[%emt 0:09:01]} 18. Rd3 {[%emt 0:02:47]} Qd7 {[%emt 0:06:28]} ({Black should play} 18... Nxe3 $15 19. Rxe3 Qxd4) 19. e4 $11 {[%emt 0:12:01]} Rcd8 {[%emt 0:13:14][%cal Oc4e5]} 20. Nd5 {[%emt 0:06:55]} Nb6 {[%emt 0:00:55]} 21. Nxb6 {[%emt 0:00:32]} axb6 {[%emt 0:00:02]} 22. Rad1 {[%emt 0:02:46]} Ra8 {[%emt 0:02:05]} 23. a3 {[%emt 0:00:22]} Bf4 {[%emt 0:04:25]} 24. e5 {[%emt 0:00:33]} Bh6 {[%emt 0:03:23]} 25. Qe4 {[%emt 0:00:27]} Rab8 {[%emt 0:00:15]} 26. Qd5 {[%emt 0:01:33] White is more active.} (26. d5 $14) 26... Qxd5 {[%emt 0:02:27]} 27. Bxd5 {[%emt 0:00:03]} Rfd8 {[%emt 0:00:53]} 28. Bf3 {[%emt 0:00:04]} Bf4 {[%emt 0:00:49]} 29. Kf1 {[%emt 0:00:44]} e6 {[%emt 0:00:21]} 30. Ke2 {[%emt 0:00:27]} Rd7 {[%emt 0:00:47]} 31. Be4 {[%emt 0:00:43]} Rbd8 {[%emt 0:00:36] Weighted Error Value: White=0.14 (very precise) /Black=0.15 (very precise)} 1/2-1/2

[Event "44th Chess Olympiad Women 2022"]
[Site "Chennai"]
[Date "2022.07.29"]
[Round "1.41"]
[White "Okuyaz, Duru"]
[Black "Marwa, Jadalla"]
[Result "1-0"]
[ECO "B36"]
[WhiteElo "2090"]
[BlackElo "1316"]
[Annotator "TA"]
[PlyCount "40"]
[EventDate "2022.07.29"]
[EventType "team-tourn"]
[EventCountry "IND"]
[SourceTitle "playchess.com"]
[Source "ChessBase"]
[SourceQuality "1"]
[WhiteTeam "Turkey"]
[BlackTeam "Sudan"]
[WhiteTeamCountry "TUR"]
[BlackTeamCountry "SUD"]
[TimeControl "40/5400+30:1800+30"]

{[%evp 10,40,35,38,85,75,70,71,79,59,69,62,65,73,63,52,57,63,68,5,78,68,67,68,70,69,70,68,69,73,76,16,25]} 1. e4 {[%emt 0:00:01]} c5 {[%emt 0:00:11]} 2. Nf3 {[%emt 0:00:07][%cal Bg1f3,Bf3d4,Bd4b3][%mdl 32]} Nc6 {[%emt 0:00:10]} 3. d4 {[%emt 0:00:10]} cxd4 {[%emt 0:00:07]} 4. Nxd4 {[%emt 0:00:07]} g6 {[%emt 0:00:17]} 5. c4 {[%emt 0:00:10]} Nf6 {[%emt 0:00:37]} 6. Nc3 {[%emt 0:00:11]} Qb6 {[%emt 0:07:55] B36: Sicilian: Maroczy Bind: Gurgenidze System.} (6... Bg7 $14 {was preferrable.}) 7. Be3 {[%emt 0:08:51]} Qa5 {[%emt 0:57:15]} 8. Nb3 {[%emt 0:04:10]} Qd8 {[%emt 0:02:26] White is better.} 9. Be2 {[%emt 0:00:35]} Bg7 {[%emt 0:00:16]} 10. O-O {[%emt 0:00:56]} O-O {[%emt 0:00:09] [#]} 11. f3 $146 {[%emt 0:01:28]} ({Predecessor:} 11. f4 d6 12. c5 Be6 13. cxd6 exd6 14. f5 Bxb3 15. axb3 Qe7 16. Bg5 Qe5 17. Ra4 {½-½ (33) Kappes,D-Dietrich,U GER email 2008}) 11... d6 {[%emt 0:06:03]} 12. Nd5 {[%emt 0:00:55]} b6 {[%emt 0:02:24]} 13. Qd2 {[%emt 0:01:04]} Re8 {[%emt 0:01:18]} 14. a4 {[%emt 0:02:16]} (14. Nc3 $14) 14... Bb7 {[%emt 0:08:29]} (14... Nd7 $11 {remains equal.}) 15. a5 $16 {[%emt 0:04:18] 0x0.0013bb753d6adp-1022s more active pieces. The black rooks are badly placed.} bxa5 {[%emt 0:06:49]} 16. Nxa5 {[%emt 0:00:16]} (16. Nf4 {with more complications.} Nd7 17. Nxa5 Rb8 18. Rfb1) 16... Nxa5 {[%emt 0:00:38]} 17. Rxa5 {[%emt 0:00:22]} Nxd5 {[%emt 0:01:37]} 18. cxd5 {[%emt 0:00:51]} ({Of course not} 18. exd5 e6 $11) 18... a6 {[%emt 0:01:10]} 19. Rfa1 {[%emt 0:01:49]} Qd7 {[%emt 0:01:36]} 20. Bxa6 {[%emt 0:07:26]} (20. Bd4 $16) 20... Bxa6 {[%emt 0:00:00][%mdl 32768] Weighted Error Value: White=0.22 (precise) /Black=0.13 (very precise) . Loss on time!?} 1-0

[Event "44th Chess Olympiad Women 2022"]
[Site "Chennai"]
[Date "2022.07.29"]
[Round "1.41"]
[White "Ibtihal Mohammed"]
[Black "Aydin, Gulenay"]
[Result "0-1"]
[ECO "A05"]
[WhiteElo "1445"]
[BlackElo "2100"]
[Annotator "TA"]
[PlyCount "76"]
[EventDate "2022.07.29"]
[EventType "team-tourn"]
[EventCountry "IND"]
[SourceTitle "playchess.com"]
[Source "ChessBase"]
[SourceQuality "1"]
[WhiteTeam "Sudan"]
[BlackTeam "Turkey"]
[WhiteTeamCountry "SUD"]
[BlackTeamCountry "TUR"]
[TimeControl "40/5400+30:1800+30"]

{[%evp 17,76,0,0,-9,-12,-13,-4,-7,0,-15,-21,-15,-15,-23,-6,-54,0,-48,-17,-95,-32,-135,-131,-137,-137,-137,-138,-152,-138,-154,-153,-153,-150,-207,-202,-206,-183,-180,-173,-285,-206,-674,-449,-454,-417,-422,-410,-369,-392,-501,-346,-405,-410,-602,-593,-593,-579,-731,-733,-743,-733]} 1. e4 {[%emt 0:00:04]} c5 {[%emt 0:00:07]} 2. Nf3 {[%emt 0:00:36]} d6 {[%emt 0:00:08]} 3. g3 {[%emt 0:00:06]} Nc6 {[%emt 0:00:47]} 4. Bg2 {[%emt 0:00:26]} Nf6 {[%emt 0:00:31]} 5. d3 {[%emt 0:00:57]} g6 {[%emt 0:00:10]} 6. O-O {[%emt 0:00:42]} Bg7 {[%emt 0:00:15]} 7. Re1 {[%emt 0:00:43]} O-O {[%emt 0:00:23]} 8. Nbd2 {[%emt 0:02:34]} Rb8 {[%emt 0:00:24]} 9. a4 {[%emt 0:02:09]} a6 {[%emt 0:00:30][%cal Ba7a6,Ba6b5][%mdl 32]} 10. Nc4 {[%emt 0:25:07] A05: Réti Opening: 1 Nf3 Nf6.} b5 {[%emt 0:03:03]} 11. axb5 {[%emt 0:01:14]} axb5 {[%emt 0:00:02]} 12. Ne3 {[%emt 0:00:08] [#] The position is equal.} Re8 $146 {[%emt 0:12:40]} ({Predecessor:} 12... Ng4 13. Nxg4 Bxg4 14. h3 Bd7 15. h4 Bg4 16. c3 b4 17. Qc2 bxc3 18. bxc3 Qb6 {½-½ (40) Milov,V (2644)-Popovic,D (2474) Playchess.com INT 2005}) 13. h3 {[%emt 0:11:50]} Bd7 {[%emt 0:04:35]} 14. Bd2 {[%emt 0:02:30]} e5 {[%emt 0:09:49]} 15. Qc1 {[%emt 0:11:08]} Rf8 {[%emt 0:11:50]} 16. g4 {[%emt 0:03:58]} (16. Nd5 $11) 16... Nd4 {[%emt 0:07:59]} (16... h5 $15) 17. Nh2 {[%emt 0:12:24]} (17. Ra7 $11 {should be considered.}) 17... Bh6 {[%emt 0:13:35]} 18. Nhf1 {[%emt 0:04:02]} (18. b4 $11 {remains equal.}) 18... Ne6 {[%emt 0:05:17] Black is more active.} (18... Bf4 $17) 19. Nd5 {[%emt 0:07:16] White is on the road to losing.} ({White should play} 19. Ng3 $15) 19... Bxd2 $17 {[%emt 0:00:37]} 20. Nxf6+ {[%emt 0:00:10]} Qxf6 {[%emt 0:00:07]} 21. Qxd2 {[%emt 0:00:09] [#]} Nf4 $1 {[%emt 0:00:52]} 22. Ne3 {[%emt 0:00:21]} Be6 {[%emt 0:02:48]} 23. Ra6 {[%emt 0:01:38]} Rfd8 {[%emt 0:00:40][%cal Bf8d8,Bd8a8,Ba8a1][%mdl 32]} 24. Kh2 {[%emt 0:01:11]} Kg7 {[%emt 0:01:41]} 25. Rh1 {[%emt 0:00:20]} (25. f3 $17 {was worth a try.}) 25... h5 $19 {[%emt 0:04:02]} 26. f3 {[%emt 0:04:05]} Ra8 {[%emt 0:05:16]} 27. Rxa8 {[%emt 0:02:47]} Rxa8 {[%emt 0:00:04]} 28. Nf1 {[%emt 0:01:41]} (28. Qf2 {keeps fighting.}) 28... Qh4 {[%emt 0:03:16][%cal Rh5g4]} 29. Kg1 $2 {[%emt 0:01:02]} (29. Ne3) 29... Ra1 {[%emt 0:00:45] [#] Strongly threatening ...Re1.} 30. Qf2 {[%emt 0:00:14]} Qxf2+ {[%emt 0:00:55]} 31. Kxf2 {[%emt 0:00:08]} Ra2 {[%emt 0:00:12]} 32. Ne3 {[%emt 0:00:27]} Rxb2 {[%emt 0:00:35] Hoping for ...b4.} 33. Ra1 {[%emt 0:00:47]} Nxd3+ {[%emt 0:01:01]} 34. Kg3 {[%emt 0:01:41]} Nf4 {[%emt 0:07:58]} 35. Rd1 {[%emt 0:01:20]} (35. Bf1 $142) 35... hxg4 {[%emt 0:00:14] Black is clearly winning.} 36. hxg4 {[%emt 0:00:12]} Ne2+ {[%emt 0:00:21]} 37. Kh2 {[%emt 0:00:19]} Nd4 {[%emt 0:00:11]} 38. c3 {[%emt 0:00:23]} Nxf3+ {[%emt 0:00:06] Weighted Error Value: White=0.55/Black=0.25 (precise)} 0-1

[Event "44th Chess Olympiad Women 2022"]
[Site "Chennai"]
[Date "2022.07.29"]
[Round "1.41"]
[White "Rayan Sedee Mohamed"]
[Black "Onur, Cigdem"]
[Result "0-1"]
[ECO "B40"]
[WhiteElo "1168"]
[BlackElo "2000"]
[Annotator "TA"]
[PlyCount "64"]
[EventDate "2022.07.29"]
[EventType "team-tourn"]
[EventCountry "IND"]
[SourceTitle "playchess.com"]
[Source "ChessBase"]
[SourceQuality "1"]
[WhiteTeam "Sudan"]
[BlackTeam "Turkey"]
[WhiteTeamCountry "SUD"]
[BlackTeamCountry "TUR"]
[TimeControl "40/5400+30:1800+30"]

{[%evp 9,64,-4,6,-13,-5,-10,-13,-21,0,-20,-8,-54,-29,-39,-6,-10,-5,-40,-34,-36,-25,-64,-61,-218,-132,-141,-72,-72,-39,-81,-90,-97,-97,-99,-97,-100,-37,-125,-102,-96,-66,-140,-119,-98,-86,-199,-55,-839,-544,-533,-525,-493,-192,-197,-219,-1513,-1476]} 1. e4 {[%emt 0:00:10]} c5 {[%emt 0:00:18]} 2. Nf3 {[%emt 0:00:51]} e6 {[%emt 0:01:09]} 3. g3 {[%emt 0:03:16]} d5 {[%emt 0:00:47]} 4. exd5 {[%emt 0:06:27]} exd5 {[%emt 0:01:24]} 5. Bg2 {[%emt 0:01:28]} Nf6 {[%emt 0:01:40]} 6. d3 {[%emt 0:04:36] B40: Sicilian: 2...e6, Unusual lines.} Be7 {[%emt 0:01:10]} 7. O-O {[%emt 0:00:12]} Nc6 {[%emt 0:01:37]} 8. c3 {[%emt 0:02:17] The position is equal.} Bg4 {[%emt 0:15:15]} 9. Re1 {[%emt 0:08:17]} O-O {[%emt 0:07:44]} 10. Nbd2 {[%emt 0:06:20]} (10. Na3 $11 {might be stronger.}) 10... Re8 {[%emt 0:10:47]} 11. h3 {[%emt 0:06:23]} Bh5 {[%emt 0:04:28] [#]} 12. Nf1 $146 {[%emt 0:16:46]} ({Predecessor:} 12. Nb3 Qb6 13. Qc2 Nd7 14. Bf4 Bg6 15. Qd2 a5 16. Rad1 a4 17. Nc1 Bf6 18. g4 {1-0 (39) Hole,O (2260)-Thanke,B (2157) Norway 1999}) 12... d4 {[%emt 0:28:07]} (12... h6 {is more complex.} 13. Bf4 g5 14. Be5 Nxe5 15. Rxe5 Qd7) 13. Qc2 {[%emt 0:10:32]} dxc3 {[%emt 0:14:32]} 14. bxc3 {[%emt 0:13:26]} Bg6 {[%emt 0:01:11]} 15. Rd1 {[%emt 0:01:47]} c4 {[%emt 0:03:44][%cal Rc4d3]} 16. Qd2 {[%emt 0:06:43] [#]} (16. Qa4 $1 $15) 16... Bxd3 {[%emt 0:01:35] Threatens to win with ...Ne4.} 17. Ne1 {[%emt 0:04:22][%cal Re1d3]} Bxf1 {[%emt 0:01:07] 0x0.0013bb258817dp-1022s more active pieces.} ({Black should play} 17... Ne5 {Hoping for ...Bc5.} 18. Nxd3 cxd3) 18. Kxf1 $17 {[%emt 0:00:19]} Qc7 {[%emt 0:01:12]} 19. Qc2 {[%emt 0:01:50]} Rad8 {[%emt 0:00:40]} 20. Bf4 {[%emt 0:00:44]} Bd6 {[%emt 0:00:48]} 21. Bxd6 {[%emt 0:01:09]} Rxd6 {[%emt 0:00:04]} 22. Nf3 {[%emt 0:01:35]} Rde6 {[%emt 0:00:46]} (22... g6 $17 23. Rxd6 Qxd6) 23. Ng5 {[%emt 0:01:38]} ({Better is} 23. Qa4 $15) 23... Re5 {[%emt 0:00:17]} 24. Nf3 {[%emt 0:00:39]} R5e7 {[%emt 0:00:30][%cal Be5e7,Be7e2,Be2f2][%mdl 32]} 25. h4 {[%emt 0:00:14]} (25. Nd4 $15) 25... h6 {[%emt 0:00:57]} 26. Nd4 {[%emt 0:00:50]} Nxd4 {[%emt 0:00:47]} 27. cxd4 {[%emt 0:00:03]} (27. Rxd4 $17 b5 28. a4) 27... c3 {[%emt 0:00:27]} (27... b5 $19 {And now ...c3 would win.} 28. Qf5 a6) 28. Rab1 $2 {[%emt 0:00:26][%mdl 8192]} (28. Rd3 $15) 28... Qc4+ {[%emt 0:00:13]} 29. Kg1 {[%emt 0:00:50]} Re2 {[%emt 0:00:42]} 30. Bf1 {[%emt 0:00:48] [#]} Qxa2 $2 {[%emt 0:00:51]} (30... Rxc2 $2 {too greedy.} 31. Bxc4 Rd2 32. Rbc1 $19) (30... b5 $1 31. Rbc1 (31. Qd3 c2) 31... Rxc2 32. Bxc4 Rxc1 33. Rxc1 bxc4 34. Rxc3 Rc8) 31. Qxc3 {[%emt 0:00:31]} Rxf2 {[%emt 0:00:19] Strongly threatening ...Ng4.} 32. Rd2 $2 {[%emt 0:00:30]} (32. Qb3) 32... Qxd2 {[%emt 0:00:00] Weighted Error Value: White=0.77/Black=0.51} 0-1

[Event "44th Chess Olympiad Women 2022"]
[Site "Chennai"]
[Date "2022.07.29"]
[Round "1.42"]
[White "Martynkova, Olena"]
[Black "Nepando, Jolly"]
[Result "1-0"]
[ECO "D53"]
[WhiteElo "2213"]
[BlackElo "1389"]
[Annotator "TA"]
[PlyCount "69"]
[EventDate "2022.07.29"]
[EventType "team-tourn"]
[EventCountry "IND"]
[SourceTitle "playchess.com"]
[Source "ChessBase"]
[SourceQuality "1"]
[WhiteTeam "Lithuania"]
[BlackTeam "Namibia"]
[WhiteTeamCountry "LTU"]
[BlackTeamCountry "NAM"]
[TimeControl "40/5400+30:1800+30"]

{[%evp 12,69,103,87,98,95,98,91,100,48,97,91,130,118,159,148,150,129,191,183,214,133,136,123,120,120,128,115,117,110,345,162,139,129,247,245,240,234,278,293,281,281,284,288,420,302,278,280,483,475,458,458,574,582,666,650,1980,1977,1861,1838]} 1. d4 {[%emt 0:00:05]} d5 {[%emt 0:00:37]} 2. c4 {[%emt 0:00:23]} e6 {[%emt 0:01:25]} 3. Nf3 {[%emt 0:00:41]} Nc6 {[%emt 0:06:00]} 4. Nc3 {[%emt 0:03:37]} Nf6 {[%emt 0:03:48]} 5. Bg5 {[%emt 0:03:06]} Be7 {[%emt 0:02:11]} 6. e3 {[%emt 0:01:47]} b6 {[%emt 0:06:04]} 7. cxd5 {[%emt 0:13:30]} Nxd5 {[%emt 0:15:59] D53: Queen's Gambit Declined: 4 Bg5 Be7: Early deviations.} 8. Bb5 {[%emt 0:05:12]} Bd7 {[%emt 0:02:55]} 9. Nxd5 {[%emt 0:01:49]} exd5 {[%emt 0:00:33] [#] White is better.} 10. Qa4 {[%emt 0:02:32]} ({White should try} 10. Rc1 $1 $16 Bxg5 11. Bxc6 Bxc6 12. Rxc6) 10... Nb8 {[%emt 0:05:55]} (10... Na5 $14 {was preferrable.}) 11. Bxe7 $16 {[%emt 0:02:07]} Qxe7 {[%emt 0:01:02]} 12. Ne5 {[%emt 0:01:04] [#]} a6 $146 {[%emt 0:11:54]} ({Predecessor:} 12... f6 13. Nxd7 Nxd7 14. Rc1 Qd6 15. Rc6 {1-0 (15) Vokac,M (2458)-Ivanova,O (1752) Pardubice 2010}) 13. Nxd7 {[%emt 0:03:14] White is more active.} Nxd7 {[%emt 0:02:00]} 14. Bc6 {[%emt 0:03:12]} Ra7 {[%emt 0:04:02]} (14... Rd8 $16 {might work better.}) 15. O-O $18 {[%emt 0:07:33]} ({Don't do} 15. Bxd5 c5 16. dxc5 Qxc5 $16) 15... Qe6 {[%emt 0:04:19]} 16. Rac1 {[%emt 0:02:39][%cal Oe3e4] And now e4! would win.} Kd8 {[%emt 0:09:03]} 17. Qb3 {[%emt 0:07:38]} Nf6 {[%emt 0:02:34]} 18. a4 {[%emt 0:02:13][%cal Ba2a4,Ba4a5][%mdl 32]} Ke7 {[%emt 0:01:10]} 19. f3 {[%emt 0:04:14][%cal Oe3e4] Strongly threatening e4!} Rd8 {[%emt 0:00:57]} 20. a5 {[%emt 0:03:20]} b5 {[%emt 0:03:07] Black cannot hold the game after this.} (20... Kf8 $16 21. Rc3 (21. axb6 cxb6 22. Rc3 Rc7 $16) 21... b5 22. Qa3+ Qe7) 21. Qa3+ {[%emt 0:06:09]} (21. e4 $142) 21... Qd6 {[%emt 0:04:33]} 22. Rc5 {[%emt 0:02:59]} Nd7 {[%emt 0:03:45]} (22... Kf8 $16 {was necessary.} 23. b4 Kg8) 23. Rxd5 {[%emt 0:02:16]} Qxa3 {[%emt 0:01:40]} 24. bxa3 {[%emt 0:00:11]} Nb8 {[%emt 0:01:38]} 25. Rxd8 {[%emt 0:00:54]} Kxd8 {[%emt 0:00:02][%mdl 4096] Endgame [#] KRB-KRN} 26. Rc1 {[%emt 0:01:12]} Ke7 {[%emt 0:00:48]} 27. e4 {[%emt 0:01:19]} f6 {[%emt 0:00:09]} (27... Kd6 $142) 28. h4 {[%emt 0:01:20][%cal Bh2h4,Bh4h5,Bh5h6][%mdl 32]} Kd6 {[%emt 0:00:01]} 29. d5 {[%emt 0:02:51] aiming for Kf2.} Nd7 $2 {[%emt 0:02:30]} (29... Ke5 {was worth a try.} 30. Kf2 Kd4) 30. Bxd7 {[%emt 0:00:17] White is clearly winning.} Kxd7 {[%emt 0:00:02]} 31. Rc6 {[%emt 0:00:35]} Kc8 {[%emt 0:02:03]} 32. h5 {[%emt 0:00:52]} Kb7 {[%emt 0:00:06]} 33. h6 {[%emt 0:00:27]} g6 {[%emt 0:02:09]} 34. Rxf6 {[%emt 0:00:18] White wants to mate with Rf7.} Ra8 {[%emt 0:00:05]} 35. Rf7 {[%emt 0:00:00] Weighted Error Value: White=0.17 (very precise) /Black=0.54} 1-0